{"text_format":"1","workbook":"xlsx","n_sheets":4,"sheets":["2014","Maquette Tableau","Legende Utilisation Tableau","2015"],"not_rendered":{"charts":0,"images":0,"macros":1,"external_links":0,"defined_names":2,"comments":3,"pivot_tables":0},"unopened":[],"bounds":{"document_bytes":16777216,"sheet_cells":100000,"rows_first":2000,"rows_last":500,"rows_between":2000,"halvings":0,"cell_chars":16384,"cell_head_chars":4096},"cells_cut":0,"cells_raw":0,"read":"whole","date_system":"1900"}

{"sheet":"2014","index":0,"n_rows":12,"n_cols":382,"rows_kept":12,"cut":false,"hidden":false,"merged":[]}
[]
[null,null,null,null,null,null,null,null,null,null,null,null,null,null,null,null,null,null,null,null,null,null,null,null,null,null,null,null,null,null,null,null,null,null,null,null,null,null,null,null,null,null,null,null,null,null,null,null,null,null,null,null,null,null,null,null,null,null,null,null,null,null,null,null,null,null,null,null,null,null,null,null,null,null,null,null,null,null,null,null,null,null,null,null,null,null,null,null,null,null,null,null,null,null,null,null,null,null,null,null,null,null,null,null,null,null,null,null,null,null,null,null,null,null,null,null,null,null,null,null,null,null,null,null,null,null,null,null,null,null,null,null,null,null,null,null,null,null,null,null,null,null,null,null,null,null,null,null,null,null,null,null,null,null,null,null,null,null,null,null,null,null,null,null,null,null,null,null,null,null,null,null,null,null,null,null,null,null,null,null,null,null,null,null,null,null,null,null,null,null,null,null,null,null,null,null,null,null,null,null,null,null,null,null,null,null,null,null,null,null,null,null,null,null,null,null,null,null,null,null,null,null,null,null,null,null,null,null,null,null,null,null,null,null,null,null,null,null,null,null,null,null,null,null,null,null,null,null,null,null,null,null,null,null,null,null,null,null,null,null,null,null,null,null,null,null,null,null,null,null,null,null,null,null,null,null,null,null,null,null,null,null,null,null,null,null,null,null,null,null,null,null,null,null,null,null,null,null,null,null,null,null,null,null,null,null,null,null,null,null,null,null,null,null,null,null,null,null,null,null,null,null,null,null,null,null,null,null,null,null,null,null,null,null,null,null,null,null,null,null,null,null,null,null,null,null,null,null,null,null,null,null,null,null,null,null,null,null,null,null,null,null,null,null,null,null,null,null,"Recapitulatif de tout , Mois par Mois , Suivez les lignes pour savoir de quoi elle parle",null,null,null,null,null,null,null,null,null,null,null,"Total Année"]
["N° Du Jour de travail","1900-01-30","1900-01-31","2014-01-01","2014-01-02","2014-01-03","2014-01-04","2014-01-05","2014-01-06","2014-01-07","2014-01-08","2014-01-09","2014-01-10","2014-01-11","2014-01-12","2014-01-13","2014-01-14","2014-01-15","2014-01-16","2014-01-17","2014-01-18","2014-01-19","2014-01-20","2014-01-21","2014-01-22","2014-01-23","2014-01-24","2014-01-25","2014-01-26","2014-01-27","2014-01-28","2014-01-29","2014-01-30","2014-01-31","2014-02-01","2014-02-02","2014-02-03","2014-02-04","2014-02-05","2014-02-06","2014-02-07","2014-02-08","2014-02-09","2014-02-10","2014-02-11","2014-02-12","2014-02-13","2014-02-14","2014-02-15","2014-02-16","2014-02-17","2014-02-18","2014-02-19","2014-02-20","2014-02-21","2014-02-22","2014-02-23","2014-02-24","2014-02-25","2014-02-26","2014-02-27","2014-02-28","2014-03-01","2014-03-02","2014-03-03","2014-03-04","2014-03-05","2014-03-06","2014-03-07","2014-03-08","2014-03-09","2014-03-10","2014-03-11","2014-03-12","2014-03-13","2014-03-14","2014-03-15","2014-03-16","2014-03-17","2014-03-18","2014-03-19","2014-03-20","2014-03-21","2014-03-22","2014-03-23","2014-03-24","2014-03-25","2014-03-26","2014-03-27","2014-03-28","2014-03-29","2014-03-30","2014-03-31","2014-04-01","2014-04-02","2014-04-03","2014-04-04","2014-04-05","2014-04-06","2014-04-07","2014-04-08","2014-04-09","2014-04-10","2014-04-11","2014-04-12","2014-04-13","2014-04-14","2014-04-15","2014-04-16","2014-04-17","2014-04-18","2014-04-19","2014-04-20","2014-04-21","2014-04-22","2014-04-23","2014-04-24","2014-04-25","2014-04-26","2014-04-27","2014-04-28","2014-04-29","2014-04-30","2014-05-01","2014-05-02","2014-05-03","2014-05-04","2014-05-05","2014-05-06","2014-05-07","2014-05-08","2014-05-09","2014-05-10","2014-05-11","2014-05-12","2014-05-13","2014-05-14","2014-05-15","2014-05-16","2014-05-17","2014-05-18","2014-05-19","2014-05-20","2014-05-21","2014-05-22","2014-05-23","2014-05-24","2014-05-25","2014-05-26","2014-05-27","2014-05-28","2014-05-29","2014-05-30","2014-05-31","2014-06-01","2014-06-02","2014-06-03","2014-06-04","2014-06-05","2014-06-06","2014-06-07","2014-06-08","2014-06-09","2014-06-10","2014-06-11","2014-06-12","2014-06-13","2014-06-14","2014-06-15","2014-06-16","2014-06-17","2014-06-18","2014-06-19","2014-06-20","2014-06-21","2014-06-22","2014-06-23","2014-06-24","2014-06-25","2014-06-26","2014-06-27","2014-06-28","2014-06-29","2014-06-30","2014-07-01","2014-07-02","2014-07-03","2014-07-04","2014-07-05","2014-07-06","2014-07-07","2014-07-08","2014-07-09","2014-07-10","2014-07-11","2014-07-12","2014-07-13","2014-07-14","2014-07-15","2014-07-16","2014-07-17","2014-07-18","2014-07-19","2014-07-20","2014-07-21","2014-07-22","2014-07-23","2014-07-24","2014-07-25","2014-07-26","2014-07-27","2014-07-28","2014-07-29","2014-07-30","2014-07-31","2014-08-01","2014-08-02","2014-08-03","2014-08-04","2014-08-05","2014-08-06","2014-08-07","2014-08-08","2014-08-09","2014-08-10","2014-08-11","2014-08-12","2014-08-13","2014-08-14","2014-08-15","2014-08-16","2014-08-17","2014-08-18","2014-08-19","2014-08-20","2014-08-21","2014-08-22","2014-08-23","2014-08-24","2014-08-25","2014-08-26","2014-08-27","2014-08-28","2014-08-29","2014-08-30","2014-08-31","2014-09-01","2014-09-02","2014-09-03","2014-09-04","2014-09-05","2014-09-06","2014-09-07","2014-09-08","2014-09-09","2014-09-10","2014-09-11","2014-09-12","2014-09-13","2014-09-14","2014-09-15","2014-09-16","2014-09-17","2014-09-18","2014-09-19","2014-09-20","2014-09-21","2014-09-22","2014-09-23","2014-09-24","2014-09-25","2014-09-26","2014-09-27","2014-09-28","2014-09-29","2014-09-30","2014-10-01","2014-10-02","2014-10-03","2014-10-04","2014-10-05","2014-10-06","2014-10-07","2014-10-08","2014-10-09","2014-10-10","2014-10-11","2014-10-12","2014-10-13","2014-10-14","2014-10-15","2014-10-16","2014-10-17","2014-10-18","2014-10-19","2014-10-20","2014-10-21","2014-10-22","2014-10-23","2014-10-24","2014-10-25","2014-10-26","2014-10-27","2014-10-28","2014-10-29","2014-10-30","2014-10-31","2014-11-01","2014-11-02","2014-11-03","2014-11-04","2014-11-05","2014-11-06","2014-11-07","2014-11-08","2014-11-09","2014-11-10","2014-11-11","2014-11-12","2014-11-13","2014-11-14","2014-11-15","2014-11-16","2014-11-17","2014-11-18","2014-11-19","2014-11-20","2014-11-21","2014-11-22","2014-11-23","2014-11-24","2014-11-25","2014-11-26","2014-11-27","2014-11-28","2014-11-29","2014-11-30","2014-12-01","2014-12-02","2014-12-03","2014-12-04","2014-12-05","2014-12-06","2014-12-07","2014-12-08","2014-12-09","2014-12-10","2014-12-11","2014-12-12","2014-12-13","2014-12-14","2014-12-15","2014-12-16","2014-12-17","2014-12-18","2014-12-19","2014-12-20","2014-12-21","2014-12-22","2014-12-23","2014-12-24","2014-12-25","2014-12-26","2014-12-27","2014-12-28","2014-12-29","2014-12-30","2014-12-31","Janvier","Fevrier","Mars","Avril","Mai","Juin","Juillet","Aout","Septembre","Octobre","Novembre","Decembre",null,"1905-07-06"]
["Jour","L","M","mercredi","jeudi","vendredi","S","D","lundi","mardi","mercredi","jeudi","vendredi","S","D","lundi","mardi","mercredi","jeudi","vendredi","S","D","lundi","mardi","mercredi","jeudi","vendredi","S","D","lundi","mardi","mercredi","jeudi","vendredi","S","D","lundi","mardi","mercredi","jeudi","vendredi","S","D","lundi","mardi","mercredi","jeudi","vendredi","S","D","lundi","mardi","mercredi","jeudi","vendredi","S","D","lundi","mardi","mercredi","jeudi","vendredi","S","D","lundi","mardi","mercredi","jeudi","vendredi","S","D","lundi","mardi","mercredi","jeudi","vendredi","S","D","lundi","mardi","mercredi","jeudi","vendredi","S","D","lundi","mardi","mercredi","jeudi","vendredi","S","D","lundi","mardi","mercredi","jeudi","vendredi","S","D","lundi","mardi","mercredi","jeudi","vendredi","S","D","lundi","mardi","mercredi","jeudi","vendredi","S","D","lundi","mardi","mercredi","jeudi","vendredi","S","D","lundi","mardi","mercredi","jeudi","vendredi","S","D","lundi","mardi","mercredi","jeudi","vendredi","S","D","lundi","mardi","mercredi","jeudi","vendredi","S","D","lundi","mardi","mercredi","jeudi","vendredi","S","D","lundi","mardi","mercredi","jeudi","vendredi","S","D","lundi","mardi","mercredi","jeudi","vendredi","S","D","lundi","mardi","mercredi","jeudi","vendredi","S","D","lundi","mardi","mercredi","jeudi","vendredi","S","D","lundi","mardi","mercredi","jeudi","vendredi","S","D","lundi","mardi","mercredi","jeudi","vendredi","S","D","lundi","mardi","mercredi","jeudi","vendredi","S","D","lundi","mardi","mercredi","jeudi","vendredi","S","D","lundi","mardi","mercredi","jeudi","vendredi","S","D","lundi","mardi","mercredi","jeudi","vendredi","S","D","lundi","mardi","mercredi","jeudi","vendredi","S","D","lundi","mardi","mercredi","jeudi","vendredi","S","D","lundi","mardi","mercredi","jeudi","vendredi","S","D","lundi","mardi","mercredi","jeudi","vendredi","S","D","lundi","mardi","mercredi","jeudi","vendredi","S","D","lundi","mardi","mercredi","jeudi","vendredi","S","D","lundi","mardi","mercredi","jeudi","vendredi","S","D","lundi","mardi","mercredi","jeudi","vendredi","S","D","lundi","mardi","mercredi","jeudi","vendredi","S","D","lundi","mardi","mercredi","jeudi","vendredi","S","D","lundi","mardi","mercredi","jeudi","vendredi","S","D","lundi","mardi","mercredi","jeudi","vendredi","S","D","lundi","mardi","mercredi","jeudi","vendredi","S","D","lundi","mardi","mercredi","jeudi","vendredi","S","D","lundi","mardi","mercredi","jeudi","vendredi","S","D","lundi","mardi","mercredi","jeudi","vendredi","S","D","lundi","mardi","mercredi","jeudi","vendredi","S","D","lundi","mardi","mercredi","jeudi","vendredi","S","D","lundi","mardi","mercredi","jeudi","vendredi","S","D","lundi","mardi","mercredi","jeudi","vendredi","S","D","lundi","mardi","mercredi","jeudi","vendredi","S","D","lundi","mardi","mercredi"]
["Acompte"]
["Conges"]
["Heure Travaillées",null,null,null,null,null,null,null,null,null,null,null,null,null,null,null,null,null,null,null,null,null,null,null,null,null,null,null,null,null,null,null,null,null,null,null,null,null,null,null,null,null,null,null,null,null,null,null,null,null,null,null,null,null,null,null,null,null,null,null,null,null,null,null,null,null,null,null,null,null,null,null,null,null,null,null,null,null,null,null,null,null,null,null,null,null,null,null,null,null,null,null,null,null,null,null,null,null,null,null,null,null,null,null,null,null,null,null,null,null,null,null,null,null,null,null,null,null,null,null,null,null,null,null,null,null,null,null,null,null,null,null,null,null,null,null,null,null,null,null,null,null,null,null,null,null,null,null,null,null,null,null,null,null,null,null,null,null,null,null,null,null,null,null,null,null,null,null,null,null,null,null,null,null,null,null,null,null,null,null,null,null,null,null,null,null,null,null,null,null,null,null,null,null,null,null,null,null,null,null,null,null,null,null,null,null,null,null,null,null,null,null,null,null,null,null,null,null,null,null,null,null,null,null,null,null,null,null,null,null,null,null,null,null,null,null,null,null,null,null,null,null,null,null,null,null,null,null,null,null,null,null,null,null,null,null,null,null,null,null,null,null,null,null,null,null,null,null,null,null,null,null,null,null,null,null,null,null,null,null,null,null,null,null,null,null,null,null,null,null,null,null,null,null,null,null,null,null,null,null,null,null,null,null,null,null,null,null,null,null,null,null,null,null,null,null,null,null,null,null,null,null,null,null,null,null,null,null,null,null,null,null,null,null,null,null,null,null,null,null,null,null,null,null,null,null,null,null,null,null,null,null,null,null,null,null,null,null,null,null,null,null,null,null,null,null,null,null,{"$f":"SUM(D7:AH7)","v":0},{"$f":"SUM(AI7:BJ7)","v":0},{"$f":"SUM(BK7:CO7)","v":0},{"$f":"SUM(CP7:DS7)","v":0},{"$f":"SUM(DT7:EX7)","v":0},{"$f":"SUM(EY7:GB7)","v":0},{"$f":"SUM(GC7:HG7)","v":0},{"$f":"SUM(HH7:IL7)","v":0},{"$f":"SUM(IM7:JP7)","v":0},{"$f":"SUM(JQ7:KU7)","v":0},{"$f":"SUM(KV7:LY7)","v":0},{"$f":"SUM(LZ7:ND7)","v":0},null,{"$f":"SUM(NE7:NP7)","v":0}]
["Beneficie d'un Panier Repas ?",null,null,null,null,null,null,null,null,null,null,null,null,null,null,null,null,null,null,null,null,null,null,null,null,null,null,null,null,null,null,null,null,null,null,null,null,null,null,null,null,null,null,null,null,null,null,null,null,null,null,null,null,null,null,null,null,null,null,null,null,null,null,null,null,null,null,null,null,null,null,null,null,null,null,null,null,null,null,null,null,null,null,null,null,null,null,null,null,null,null,null,null,null,null,null,null,null,null,null,null,null,null,null,null,null,null,null,null,null,null,null,null,null,null,null,null,null,null,null,null,null,null,null,null,null,null,null,null,null,null,null,null,null,null,null,null,null,null,null,null,null,null,null,null,null,null,null,null,null,null,null,null,null,null,null,null,null,null,null,null,null,null,null,null,null,null,null,null,null,null,null,null,null,null,null,null,null,null,null,null,null,null,null,null,null,null,null,null,null,null,null,null,null,null,null,null,null,null,null,null,null,null,null,null,null,null,null,null,null,null,null,null,null,null,null,null,null,null,null,null,null,null,null,null,null,null,null,null,null,null,null,null,null,null,null,null,null,null,null,null,null,null,null,null,null,null,null,null,null,null,null,null,null,null,null,null,null,null,null,null,null,null,null,null,null,null,null,null,null,null,null,null,null,null,null,null,null,null,null,null,null,null,null,null,null,null,null,null,null,null,null,null,null,null,null,null,null,null,null,null,null,null,null,null,null,null,null,null,null,null,null,null,null,null,null,null,null,null,null,null,null,null,null,null,null,null,null,null,null,null,null,null,null,null,null,null,null,null,null,null,null,null,null,null,null,null,null,null,null,null,null,null,null,null,null,null,null,null,null,null,null,null,null,null,null,null,null,{"$f":"SUM(D8:AH8)","v":0},{"$f":"SUM(AI8:BJ8)","v":0},{"$f":"SUM(BK8:CO8)","v":0},{"$f":"SUM(CP8:DS8)","v":0},{"$f":"SUM(DT8:EX8)","v":0},{"$f":"SUM(EY8:GB8)","v":0},{"$f":"SUM(GC8:HG8)","v":0},{"$f":"SUM(HH8:IL8)","v":0},{"$f":"SUM(IM8:JP8)","v":0},{"$f":"SUM(JQ8:KU8)","v":0},{"$f":"SUM(KV8:LY8)","v":0},{"$f":"SUM(LZ8:ND8)","v":0},null,{"$f":"SUM(NE8:NP8)","v":0}]
["Dedomagement trajet",null,null,null,null,null,null,null,null,null,null,null,null,null,null,null,null,null,null,null,null,null,null,null,null,null,null,null,null,null,null,null,null,null,null,null,null,null,null,null,null,null,null,null,null,null,null,null,null,null,null,null,null,null,null,null,null,null,null,null,null,null,null,null,null,null,null,null,null,null,null,null,null,null,null,null,null,null,null,null,null,null,null,null,null,null,null,null,null,null,null,null,null,null,null,null,null,null,null,null,null,null,null,null,null,null,null,null,null,null,null,null,null,null,null,null,null,null,null,null,null,null,null,null,null,null,null,null,null,null,null,null,null,null,null,null,null,null,null,null,null,null,null,null,null,null,null,null,null,null,null,null,null,null,null,null,null,null,null,null,null,null,null,null,null,null,null,null,null,null,null,null,null,null,null,null,null,null,null,null,null,null,null,null,null,null,null,null,null,null,null,null,null,null,null,null,null,null,null,null,null,null,null,null,null,null,null,null,null,null,null,null,null,null,null,null,null,null,null,null,null,null,null,null,null,null,null,null,null,null,null,null,null,null,null,null,null,null,null,null,null,null,null,null,null,null,null,null,null,null,null,null,null,null,null,null,null,null,null,null,null,null,null,null,null,null,null,null,null,null,null,null,null,null,null,null,null,null,null,null,null,null,null,null,null,null,null,null,null,null,null,null,null,null,null,null,null,null,null,null,null,null,null,null,null,null,null,null,null,null,null,null,null,null,null,null,null,null,null,null,null,null,null,null,null,null,null,null,null,null,null,null,null,null,null,null,null,null,null,null,null,null,null,null,null,null,null,null,null,null,null,null,null,null,null,null,null,null,null,null,null,null,null,null,null,null,null,null,{"$f":"SUM(D9:AH9)","v":0},{"$f":"SUM(AI9:BJ9)","v":0},{"$f":"SUM(BK9:CO9)","v":0},{"$f":"SUM(CP9:DS9)","v":0},{"$f":"SUM(DT9:EX9)","v":0},{"$f":"SUM(EY9:GB9)","v":0},{"$f":"SUM(GC9:HG9)","v":0},{"$f":"SUM(HH9:IL9)","v":0},{"$f":"SUM(IM9:JP9)","v":0},{"$f":"SUM(JQ9:KU9)","v":0},{"$f":"SUM(KV9:LY9)","v":0},{"$f":"SUM(LZ9:ND9)","v":0},null,{"$f":"SUM(NE9:NP9)","v":0}]
["Message d'information"]
["Champ Libre (Complement)"]
["Total Heure Semaine",null,null,null,null,null,null,{"$f":"SUM(D7:H7)","v":0},null,null,null,null,null,null,{"$f":"SUM(I7:O7)","v":0},null,null,null,null,null,null,{"$f":"SUM(P7:V7)","v":0},null,null,null,null,null,null,{"$f":"SUM(W7:AC7)","v":0},null,null,null,null,null,null,{"$f":"SUM(AD7:AJ7)","v":0},null,null,null,null,null,null,{"$f":"SUM(AK7:AQ7)","v":0},null,null,null,null,null,null,{"$f":"SUM(AR7:AX7)","v":0},null,null,null,null,null,null,{"$f":"SUM(AY7:BE7)","v":0},null,null,null,null,null,null,{"$f":"SUM(BF7:BL7)","v":0},null,null,null,null,null,null,{"$f":"SUM(BM7:BS7)","v":0},null,null,null,null,null,null,{"$f":"SUM(BT7:BZ7)","v":0},null,null,null,null,null,null,{"$f":"SUM(CA7:CG7)","v":0},null,null,null,null,null,null,{"$f":"SUM(CH7:CN7)","v":0},null,null,null,null,null,null,{"$f":"SUM(CO7:CU7)","v":0},null,null,null,null,null,null,{"$f":"SUM(CV7:DB7)","v":0},null,null,null,null,null,null,{"$f":"SUM(DC7:DI7)","v":0},null,null,null,null,null,null,{"$f":"SUM(DJ7:DP7)","v":0},null,null,null,null,null,null,{"$f":"SUM(DQ7:DW7)","v":0},null,null,null,null,null,null,{"$f":"SUM(DX7:ED7)","v":0},null,null,null,null,null,null,{"$f":"SUM(EE7:EK7)","v":0},null,null,null,null,null,null,{"$f":"SUM(EL7:ER7)","v":0},null,null,null,null,null,null,{"$f":"SUM(ES7:EY7)","v":0},null,null,null,null,null,null,{"$f":"SUM(EZ7:FF7)","v":0},null,null,null,null,null,null,{"$f":"SUM(FG7:FM7)","v":0},null,null,null,null,null,null,{"$f":"SUM(FN7:FT7)","v":0},null,null,null,null,null,null,{"$f":"SUM(FU7:GA7)","v":0},null,null,null,null,null,null,{"$f":"SUM(GB7:GH7)","v":0},null,null,null,null,null,null,{"$f":"SUM(GI7:GO7)","v":0},null,null,null,null,null,null,{"$f":"SUM(GP7:GV7)","v":0},null,null,null,null,null,null,{"$f":"SUM(GW7:HC7)","v":0},null,null,null,null,null,null,{"$f":"SUM(HD7:HJ7)","v":0},null,null,null,null,null,null,{"$f":"SUM(HK7:HQ7)","v":0},null,null,null,null,null,null,{"$f":"SUM(HR7:HX7)","v":0},null,null,null,null,null,null,{"$f":"SUM(HY7:IE7)","v":0},null,null,null,null,null,null,{"$f":"SUM(IF7:IL7)","v":0},null,null,null,null,null,null,{"$f":"SUM(IM7:IS7)","v":0},null,null,null,null,null,null,{"$f":"SUM(IT7:IZ7)","v":0},null,null,null,null,null,null,{"$f":"SUM(JA7:JG7)","v":0},null,null,null,null,null,null,{"$f":"SUM(JH7:JN7)","v":0},null,null,null,null,null,null,{"$f":"SUM(JO7:JU7)","v":0},null,null,null,null,null,null,{"$f":"SUM(JV7:KB7)","v":0},null,null,null,null,null,null,{"$f":"SUM(KC7:KI7)","v":0},null,null,null,null,null,null,{"$f":"SUM(KJ7:KP7)","v":0},null,null,null,null,null,null,{"$f":"SUM(KQ7:KW7)","v":0},null,null,null,null,null,null,{"$f":"SUM(KX7:LD7)","v":0},null,null,null,null,null,null,{"$f":"SUM(LE7:LK7)","v":0},null,null,null,null,null,null,{"$f":"SUM(LL7:LR7)","v":0},null,null,null,null,null,null,{"$f":"SUM(LS7:LY7)","v":0},null,null,null,null,null,null,{"$f":"SUM(LZ7:MF7)","v":0},null,null,null,null,null,null,{"$f":"SUM(MG7:MM7)","v":0},null,null,null,null,null,null,{"$f":"SUM(MN7:MT7)","v":0},null,null,null,null,null,null,{"$f":"SUM(MU7:NA7)","v":0}]

{"sheet":"Maquette Tableau","index":1,"n_rows":12,"n_cols":380,"rows_kept":12,"cut":false,"hidden":false,"merged":[]}
[]
[null,null,null,null,null,null,null,null,null,null,null,null,null,null,null,null,null,null,null,null,null,null,null,null,null,null,null,null,null,null,null,null,null,null,null,null,null,null,null,null,null,null,null,null,null,null,null,null,null,null,null,null,null,null,null,null,null,null,null,null,null,null,null,null,null,null,null,null,null,null,null,null,null,null,null,null,null,null,null,null,null,null,null,null,null,null,null,null,null,null,null,null,null,null,null,null,null,null,null,null,null,null,null,null,null,null,null,null,null,null,null,null,null,null,null,null,null,null,null,null,null,null,null,null,null,null,null,null,null,null,null,null,null,null,null,null,null,null,null,null,null,null,null,null,null,null,null,null,null,null,null,null,null,null,null,null,null,null,null,null,null,null,null,null,null,null,null,null,null,null,null,null,null,null,null,null,null,null,null,null,null,null,null,null,null,null,null,null,null,null,null,null,null,null,null,null,null,null,null,null,null,null,null,null,null,null,null,null,null,null,null,null,null,null,null,null,null,null,null,null,null,null,null,null,null,null,null,null,null,null,null,null,null,null,null,null,null,null,null,null,null,null,null,null,null,null,null,null,null,null,null,null,null,null,null,null,null,null,null,null,null,null,null,null,null,null,null,null,null,null,null,null,null,null,null,null,null,null,null,null,null,null,null,null,null,null,null,null,null,null,null,null,null,null,null,null,null,null,null,null,null,null,null,null,null,null,null,null,null,null,null,null,null,null,null,null,null,null,null,null,null,null,null,null,null,null,null,null,null,null,null,null,null,null,null,null,null,null,null,null,null,null,null,null,null,null,null,null,null,null,null,null,null,null,null,null,null,null,null,null,null,null,null,null,null,null,"Recapitulatif de tout , Mois par Mois , Suivez les lignes pour savoir de quoi elle parle",null,null,null,null,null,null,null,null,null,null,null,"Total Année"]
["N° Du Jour de travail",null,null,null,null,null,null,null,null,null,null,null,null,null,null,null,null,null,null,null,null,null,null,null,null,null,null,null,null,null,null,null,null,null,null,null,null,null,null,null,null,null,null,null,null,null,null,null,null,null,null,null,null,null,null,null,null,null,null,null,null,null,null,null,null,null,null,null,null,null,null,null,null,null,null,null,null,null,null,null,null,null,null,null,null,null,null,null,null,null,null,null,null,null,null,null,null,null,null,null,null,null,null,null,null,null,null,null,null,null,null,null,null,null,null,null,null,null,null,null,null,null,null,null,null,null,null,null,null,null,null,null,null,null,null,null,null,null,null,null,null,null,null,null,null,null,null,null,null,null,null,null,null,null,null,null,null,null,null,null,null,null,null,null,null,null,null,null,null,null,null,null,null,null,null,null,null,null,null,null,null,null,null,null,null,null,null,null,null,null,null,null,null,null,null,null,null,null,null,null,null,null,null,null,null,null,null,null,null,null,null,null,null,null,null,null,null,null,null,null,null,null,null,null,null,null,null,null,null,null,null,null,null,null,null,null,null,null,null,null,null,null,null,null,null,null,null,null,null,null,null,null,null,null,null,null,null,null,null,null,null,null,null,null,null,null,null,null,null,null,null,null,null,null,null,null,null,null,null,null,null,null,null,null,null,null,null,null,null,null,null,null,null,null,null,null,null,null,null,null,null,null,null,null,null,null,null,null,null,null,null,null,null,null,null,null,null,null,null,null,null,null,null,null,null,null,null,null,null,null,null,null,null,null,null,null,null,null,null,null,null,null,null,null,null,null,null,null,null,null,null,null,null,null,null,null,null,null,null,null,null,null,null,null,null,null,"Janvier","Fevrier","Mars","Avril","Mai","Juin","Juillet","Aout","Septembre","Octobre","Novembre","Decembre"]
["Jour"]
["Acompte"]
["Conges"]
["Heure Travaillées",null,null,null,null,null,null,null,null,null,null,null,null,null,null,null,null,null,null,null,null,null,null,null,null,null,null,null,null,null,null,null,null,null,null,null,null,null,null,null,null,null,null,null,null,null,null,null,null,null,null,null,null,null,null,null,null,null,null,null,null,null,null,null,null,null,null,null,null,null,null,null,null,null,null,null,null,null,null,null,null,null,null,null,null,null,null,null,null,null,null,null,null,null,null,null,null,null,null,null,null,null,null,null,null,null,null,null,null,null,null,null,null,null,null,null,null,null,null,null,null,null,null,null,null,null,null,null,null,null,null,null,null,null,null,null,null,null,null,null,null,null,null,null,null,null,null,null,null,null,null,null,null,null,null,null,null,null,null,null,null,null,null,null,null,null,null,null,null,null,null,null,null,null,null,null,null,null,null,null,null,null,null,null,null,null,null,null,null,null,null,null,null,null,null,null,null,null,null,null,null,null,null,null,null,null,null,null,null,null,null,null,null,null,null,null,null,null,null,null,null,null,null,null,null,null,null,null,null,null,null,null,null,null,null,null,null,null,null,null,null,null,null,null,null,null,null,null,null,null,null,null,null,null,null,null,null,null,null,null,null,null,null,null,null,null,null,null,null,null,null,null,null,null,null,null,null,null,null,null,null,null,null,null,null,null,null,null,null,null,null,null,null,null,null,null,null,null,null,null,null,null,null,null,null,null,null,null,null,null,null,null,null,null,null,null,null,null,null,null,null,null,null,null,null,null,null,null,null,null,null,null,null,null,null,null,null,null,null,null,null,null,null,null,null,null,null,null,null,null,null,null,null,null,null,null,null,null,null,null,null,null,null,null,null,null,{"$f":"SUM(C7:AG7)","v":0},{"$f":"SUM(AH7:BI7)","v":0},{"$f":"SUM(BJ7:CN7)","v":0},{"$f":"SUM(CO7:DR7)","v":0},{"$f":"SUM(DS7:EW7)","v":0},{"$f":"SUM(EX7:GA7)","v":0},{"$f":"SUM(GB7:HF7)","v":0},{"$f":"SUM(HG7:IK7)","v":0},{"$f":"SUM(IL7:JO7)","v":0},{"$f":"SUM(JP7:KT7)","v":0},{"$f":"SUM(KU7:LX7)","v":0},{"$f":"SUM(LY7:NB7)","v":0},null,{"$f":"SUM(NC7:NN7)","v":0}]
["Beneficie d'un Panier Repas ?",null,null,null,null,null,null,null,null,null,null,null,null,null,null,null,null,null,null,null,null,null,null,null,null,null,null,null,null,null,null,null,null,null,null,null,null,null,null,null,null,null,null,null,null,null,null,null,null,null,null,null,null,null,null,null,null,null,null,null,null,null,null,null,null,null,null,null,null,null,null,null,null,null,null,null,null,null,null,null,null,null,null,null,null,null,null,null,null,null,null,null,null,null,null,null,null,null,null,null,null,null,null,null,null,null,null,null,null,null,null,null,null,null,null,null,null,null,null,null,null,null,null,null,null,null,null,null,null,null,null,null,null,null,null,null,null,null,null,null,null,null,null,null,null,null,null,null,null,null,null,null,null,null,null,null,null,null,null,null,null,null,null,null,null,null,null,null,null,null,null,null,null,null,null,null,null,null,null,null,null,null,null,null,null,null,null,null,null,null,null,null,null,null,null,null,null,null,null,null,null,null,null,null,null,null,null,null,null,null,null,null,null,null,null,null,null,null,null,null,null,null,null,null,null,null,null,null,null,null,null,null,null,null,null,null,null,null,null,null,null,null,null,null,null,null,null,null,null,null,null,null,null,null,null,null,null,null,null,null,null,null,null,null,null,null,null,null,null,null,null,null,null,null,null,null,null,null,null,null,null,null,null,null,null,null,null,null,null,null,null,null,null,null,null,null,null,null,null,null,null,null,null,null,null,null,null,null,null,null,null,null,null,null,null,null,null,null,null,null,null,null,null,null,null,null,null,null,null,null,null,null,null,null,null,null,null,null,null,null,null,null,null,null,null,null,null,null,null,null,null,null,null,null,null,null,null,null,null,null,null,null,null,null,null,null,{"$f":"SUM(C8:AG8)","v":0},{"$f":"SUM(AH8:BI8)","v":0},{"$f":"SUM(BJ8:CN8)","v":0},{"$f":"SUM(CO8:DR8)","v":0},{"$f":"SUM(DS8:EW8)","v":0},{"$f":"SUM(EX8:GA8)","v":0},{"$f":"SUM(GB8:HF8)","v":0},{"$f":"SUM(HG8:IK8)","v":0},{"$f":"SUM(IL8:JO8)","v":0},{"$f":"SUM(JP8:KT8)","v":0},{"$f":"SUM(KU8:LX8)","v":0},{"$f":"SUM(LY8:NB8)","v":0},null,{"$f":"SUM(NC8:NN8)","v":0}]
["Dedomagement trajet",null,null,null,null,null,null,null,null,null,null,null,null,null,null,null,null,null,null,null,null,null,null,null,null,null,null,null,null,null,null,null,null,null,null,null,null,null,null,null,null,null,null,null,null,null,null,null,null,null,null,null,null,null,null,null,null,null,null,null,null,null,null,null,null,null,null,null,null,null,null,null,null,null,null,null,null,null,null,null,null,null,null,null,null,null,null,null,null,null,null,null,null,null,null,null,null,null,null,null,null,null,null,null,null,null,null,null,null,null,null,null,null,null,null,null,null,null,null,null,null,null,null,null,null,null,null,null,null,null,null,null,null,null,null,null,null,null,null,null,null,null,null,null,null,null,null,null,null,null,null,null,null,null,null,null,null,null,null,null,null,null,null,null,null,null,null,null,null,null,null,null,null,null,null,null,null,null,null,null,null,null,null,null,null,null,null,null,null,null,null,null,null,null,null,null,null,null,null,null,null,null,null,null,null,null,null,null,null,null,null,null,null,null,null,null,null,null,null,null,null,null,null,null,null,null,null,null,null,null,null,null,null,null,null,null,null,null,null,null,null,null,null,null,null,null,null,null,null,null,null,null,null,null,null,null,null,null,null,null,null,null,null,null,null,null,null,null,null,null,null,null,null,null,null,null,null,null,null,null,null,null,null,null,null,null,null,null,null,null,null,null,null,null,null,null,null,null,null,null,null,null,null,null,null,null,null,null,null,null,null,null,null,null,null,null,null,null,null,null,null,null,null,null,null,null,null,null,null,null,null,null,null,null,null,null,null,null,null,null,null,null,null,null,null,null,null,null,null,null,null,null,null,null,null,null,null,null,null,null,null,null,null,null,null,null,{"$f":"SUM(C9:AG9)","v":0},{"$f":"SUM(AH9:BI9)","v":0},{"$f":"SUM(BJ9:CN9)","v":0},{"$f":"SUM(CO9:DR9)","v":0},{"$f":"SUM(DS9:EW9)","v":0},{"$f":"SUM(EX9:GA9)","v":0},{"$f":"SUM(GB9:HF9)","v":0},{"$f":"SUM(HG9:IK9)","v":0},{"$f":"SUM(IL9:JO9)","v":0},{"$f":"SUM(JP9:KT9)","v":0},{"$f":"SUM(KU9:LX9)","v":0},{"$f":"SUM(LY9:NB9)","v":0},null,{"$f":"SUM(NC9:NN9)","v":0}]
["Message d'information"]
["Champ Libre (Complement)"]
["Total Heure Semaine",null,null,null,null,null,{"$f":"SUM(C7:G7)","v":0},null,null,null,null,null,null,{"$f":"SUM(H7:N7)","v":0},null,null,null,null,null,null,{"$f":"SUM(O7:U7)","v":0},null,null,null,null,null,null,{"$f":"SUM(V7:AB7)","v":0},null,null,null,null,null,null,{"$f":"SUM(AC7:AI7)","v":0},null,null,null,null,null,null,{"$f":"SUM(AJ7:AP7)","v":0},null,null,null,null,null,null,{"$f":"SUM(AQ7:AW7)","v":0},null,null,null,null,null,null,{"$f":"SUM(AX7:BD7)","v":0},null,null,null,null,null,null,{"$f":"SUM(BE7:BK7)","v":0},null,null,null,null,null,null,{"$f":"SUM(BL7:BR7)","v":0},null,null,null,null,null,null,{"$f":"SUM(BS7:BY7)","v":0},null,null,null,null,null,null,{"$f":"SUM(BZ7:CF7)","v":0},null,null,null,null,null,null,{"$f":"SUM(CG7:CM7)","v":0},null,null,null,null,null,null,{"$f":"SUM(CN7:CT7)","v":0},null,null,null,null,null,null,{"$f":"SUM(CU7:DA7)","v":0},null,null,null,null,null,null,{"$f":"SUM(DB7:DH7)","v":0},null,null,null,null,null,null,{"$f":"SUM(DI7:DO7)","v":0},null,null,null,null,null,null,{"$f":"SUM(DP7:DV7)","v":0},null,null,null,null,null,null,{"$f":"SUM(DW7:EC7)","v":0},null,null,null,null,null,null,{"$f":"SUM(ED7:EJ7)","v":0},null,null,null,null,null,null,{"$f":"SUM(EK7:EQ7)","v":0},null,null,null,null,null,null,{"$f":"SUM(ER7:EX7)","v":0},null,null,null,null,null,null,{"$f":"SUM(EY7:FE7)","v":0},null,null,null,null,null,null,{"$f":"SUM(FF7:FL7)","v":0},null,null,null,null,null,null,{"$f":"SUM(FM7:FS7)","v":0},null,null,null,null,null,null,{"$f":"SUM(FT7:FZ7)","v":0},null,null,null,null,null,null,{"$f":"SUM(GA7:GG7)","v":0},null,null,null,null,null,null,{"$f":"SUM(GH7:GN7)","v":0},null,null,null,null,null,null,{"$f":"SUM(GO7:GU7)","v":0},null,null,null,null,null,null,{"$f":"SUM(GV7:HB7)","v":0},null,null,null,null,null,null,{"$f":"SUM(HC7:HI7)","v":0},null,null,null,null,null,null,{"$f":"SUM(HJ7:HP7)","v":0},null,null,null,null,null,null,{"$f":"SUM(HQ7:HW7)","v":0},null,null,null,null,null,null,{"$f":"SUM(HX7:ID7)","v":0},null,null,null,null,null,null,{"$f":"SUM(IE7:IK7)","v":0},null,null,null,null,null,null,{"$f":"SUM(IL7:IR7)","v":0},null,null,null,null,null,null,{"$f":"SUM(IS7:IY7)","v":0},null,null,null,null,null,null,{"$f":"SUM(IZ7:JF7)","v":0},null,null,null,null,null,null,{"$f":"SUM(JG7:JM7)","v":0},null,null,null,null,null,null,{"$f":"SUM(JN7:JT7)","v":0},null,null,null,null,null,null,{"$f":"SUM(JU7:KA7)","v":0},null,null,null,null,null,null,{"$f":"SUM(KB7:KH7)","v":0},null,null,null,null,null,null,{"$f":"SUM(KI7:KO7)","v":0},null,null,null,null,null,null,{"$f":"SUM(KP7:KV7)","v":0},null,null,null,null,null,null,{"$f":"SUM(KW7:LC7)","v":0},null,null,null,null,null,null,{"$f":"SUM(LD7:LJ7)","v":0},null,null,null,null,null,null,{"$f":"SUM(LK7:LQ7)","v":0},null,null,null,null,null,null,{"$f":"SUM(LR7:LX7)","v":0},null,null,null,null,null,null,{"$f":"SUM(LY7:ME7)","v":0},null,null,null,null,null,null,{"$f":"SUM(MF7:ML7)","v":0},null,null,null,null,null,null,{"$f":"SUM(MM7:MS7)","v":0},null,null,null,null,null,null,{"$f":"SUM(MT7:MZ7)","v":0}]

{"sheet":"Legende Utilisation Tableau","index":2,"n_rows":6,"n_cols":5,"rows_kept":6,"cut":false,"hidden":false,"merged":[]}
[null,"Dimanche",null,null,"Le Dimanche on Comptabilise les heures de travail  de la semaine"]
[null,"Jour de Conges",null,null,"Les Jours de Conges Aucune Heure de travail ne peut etre saisi"]
[null,"Maladie",null,null,"En cas de maladie , Veuillez indiquez la periode de maladie"]
[null,"RTT",null,null,"Le RTT Aucune Heure de travail ne doit etre saisi"]
["Message et Champ Libre",null,null,null,"Cases disponible pour faire parvenir un message au destinataire"]
[null,null,null,null,"NOTE : CHAQUE NOUVEAU ENTREE SE FERAS A LA FIN DU TABLEAU ( CECI N'EST PAS UN TABLEAU TRIEE )"]

{"sheet":"2015","index":3,"n_rows":12,"n_cols":380,"rows_kept":12,"cut":false,"hidden":false,"merged":[]}
[]
[null,null,null,null,null,null,null,null,null,null,null,null,null,null,null,null,null,null,null,null,null,null,null,null,null,null,null,null,null,null,null,null,null,null,null,null,null,null,null,null,null,null,null,null,null,null,null,null,null,null,null,null,null,null,null,null,null,null,null,null,null,null,null,null,null,null,null,null,null,null,null,null,null,null,null,null,null,null,null,null,null,null,null,null,null,null,null,null,null,null,null,null,null,null,null,null,null,null,null,null,null,null,null,null,null,null,null,null,null,null,null,null,null,null,null,null,null,null,null,null,null,null,null,null,null,null,null,null,null,null,null,null,null,null,null,null,null,null,null,null,null,null,null,null,null,null,null,null,null,null,null,null,null,null,null,null,null,null,null,null,null,null,null,null,null,null,null,null,null,null,null,null,null,null,null,null,null,null,null,null,null,null,null,null,null,null,null,null,null,null,null,null,null,null,null,null,null,null,null,null,null,null,null,null,null,null,null,null,null,null,null,null,null,null,null,null,null,null,null,null,null,null,null,null,null,null,null,null,null,null,null,null,null,null,null,null,null,null,null,null,null,null,null,null,null,null,null,null,null,null,null,null,null,null,null,null,null,null,null,null,null,null,null,null,null,null,null,null,null,null,null,null,null,null,null,null,null,null,null,null,null,null,null,null,null,null,null,null,null,null,null,null,null,null,null,null,null,null,null,null,null,null,null,null,null,null,null,null,null,null,null,null,null,null,null,null,null,null,null,null,null,null,null,null,null,null,null,null,null,null,null,null,null,null,null,null,null,null,null,null,null,null,null,null,null,null,null,null,null,null,null,null,null,null,null,null,null,null,null,null,null,null,null,null,null,null,"Recapitulatif de tout , Mois par Mois , Suivez les lignes pour savoir de quoi elle parle",null,null,null,null,null,null,null,null,null,null,null,"Total Année"]
["N° Du Jour de travail","2015-01-01","2015-01-02","2015-01-03","2015-01-04","2015-01-05","2015-01-06","2015-01-07","2015-01-08","2015-01-09","2015-01-10","2015-01-11","2015-01-12","2015-01-13","2015-01-14","2015-01-15","2015-01-16","2015-01-17","2015-01-18","2015-01-19","2015-01-20","2015-01-21","2015-01-22","2015-01-23","2015-01-24","2015-01-25","2015-01-26","2015-01-27","2015-01-28","2015-01-29","2015-01-30","2015-01-31","2015-02-01","2015-02-02","2015-02-03","2015-02-04","2015-02-05","2015-02-06","2015-02-07","2015-02-08","2015-02-09","2015-02-10","2015-02-11","2015-02-12","2015-02-13","2015-02-14","2015-02-15","2015-02-16","2015-02-17","2015-02-18","2015-02-19","2015-02-20","2015-02-21","2015-02-22","2015-02-23","2015-02-24","2015-02-25","2015-02-26","2015-02-27","2015-02-28","2015-03-01","2015-03-02","2015-03-03","2015-03-04","2015-03-05","2015-03-06","2015-03-07","2015-03-08","2015-03-09","2015-03-10","2015-03-11","2015-03-12","2015-03-13","2015-03-14","2015-03-15","2015-03-16","2015-03-17","2015-03-18","2015-03-19","2015-03-20","2015-03-21","2015-03-22","2015-03-23","2015-03-24","2015-03-25","2015-03-26","2015-03-27","2015-03-28","2015-03-29","2015-03-30","2015-03-31","2015-04-01","2015-04-02","2015-04-03","2015-04-04","2015-04-05","2015-04-06","2015-04-07","2015-04-08","2015-04-09","2015-04-10","2015-04-11","2015-04-12","2015-04-13","2015-04-14","2015-04-15","2015-04-16","2015-04-17","2015-04-18","2015-04-19","2015-04-20","2015-04-21","2015-04-22","2015-04-23","2015-04-24","2015-04-25","2015-04-26","2015-04-27","2015-04-28","2015-04-29","2015-04-30","2015-05-01","2015-05-02","2015-05-03","2015-05-04","2015-05-05","2015-05-06","2015-05-07","2015-05-08","2015-05-09","2015-05-10","2015-05-11","2015-05-12","2015-05-13","2015-05-14","2015-05-15","2015-05-16","2015-05-17","2015-05-18","2015-05-19","2015-05-20","2015-05-21","2015-05-22","2015-05-23","2015-05-24","2015-05-25","2015-05-26","2015-05-27","2015-05-28","2015-05-29","2015-05-30","2015-05-31","2015-06-01","2015-06-02","2015-06-03","2015-06-04","2015-06-05","2015-06-06","2015-06-07","2015-06-08","2015-06-09","2015-06-10","2015-06-11","2015-06-12","2015-06-13","2015-06-14","2015-06-15","2015-06-16","2015-06-17","2015-06-18","2015-06-19","2015-06-20","2015-06-21","2015-06-22","2015-06-23","2015-06-24","2015-06-25","2015-06-26","2015-06-27","2015-06-28","2015-06-29","2015-06-30","2015-07-01","2015-07-02","2015-07-03","2015-07-04","2015-07-05","2015-07-06","2015-07-07","2015-07-08","2015-07-09","2015-07-10","2015-07-11","2015-07-12","2015-07-13","2015-07-14","2015-07-15","2015-07-16","2015-07-17","2015-07-18","2015-07-19","2015-07-20","2015-07-21","2015-07-22","2015-07-23","2015-07-24","2015-07-25","2015-07-26","2015-07-27","2015-07-28","2015-07-29","2015-07-30","2015-07-31","2015-08-01","2015-08-02","2015-08-03","2015-08-04","2015-08-05","2015-08-06","2015-08-07","2015-08-08","2015-08-09","2015-08-10","2015-08-11","2015-08-12","2015-08-13","2015-08-14","2015-08-15","2015-08-16","2015-08-17","2015-08-18","2015-08-19","2015-08-20","2015-08-21","2015-08-22","2015-08-23","2015-08-24","2015-08-25","2015-08-26","2015-08-27","2015-08-28","2015-08-29","2015-08-30","2015-08-31","2015-09-01","2015-09-02","2015-09-03","2015-09-04","2015-09-05","2015-09-06","2015-09-07","2015-09-08","2015-09-09","2015-09-10","2015-09-11","2015-09-12","2015-09-13","2015-09-14","2015-09-15","2015-09-16","2015-09-17","2015-09-18","2015-09-19","2015-09-20","2015-09-21","2015-09-22","2015-09-23","2015-09-24","2015-09-25","2015-09-26","2015-09-27","2015-09-28","2015-09-29","2015-09-30","2015-10-01","2015-10-02","2015-10-03","2015-10-04","2015-10-05","2015-10-06","2015-10-07","2015-10-08","2015-10-09","2015-10-10","2015-10-11","2015-10-12","2015-10-13","2015-10-14","2015-10-15","2015-10-16","2015-10-17","2015-10-18","2015-10-19","2015-10-20","2015-10-21","2015-10-22","2015-10-23","2015-10-24","2015-10-25","2015-10-26","2015-10-27","2015-10-28","2015-10-29","2015-10-30","2015-10-31","2015-11-01","2015-11-02","2015-11-03","2015-11-04","2015-11-05","2015-11-06","2015-11-07","2015-11-08","2015-11-09","2015-11-10","2015-11-11","2015-11-12","2015-11-13","2015-11-14","2015-11-15","2015-11-16","2015-11-17","2015-11-18","2015-11-19","2015-11-20","2015-11-21","2015-11-22","2015-11-23","2015-11-24","2015-11-25","2015-11-26","2015-11-27","2015-11-28","2015-11-29","2015-11-30","2015-12-01","2015-12-02","2015-12-03","2015-12-04","2015-12-05","2015-12-06","2015-12-07","2015-12-08","2015-12-09","2015-12-10","2015-12-11","2015-12-12","2015-12-13","2015-12-14","2015-12-15","2015-12-16","2015-12-17","2015-12-18","2015-12-19","2015-12-20","2015-12-21","2015-12-22","2015-12-23","2015-12-24","2015-12-25","2015-12-26","2015-12-27","2015-12-28","2015-12-29","2015-12-30",null,"Janvier","Fevrier","Mars","Avril","Mai","Juin","Juillet","Aout","Septembre","Octobre","Novembre","Decembre"]
["Jour","jeudi","vendredi","S","D","lundi","mardi","mercredi","jeudi","vendredi","S","D","lundi","mardi","mercredi","jeudi","vendredi","S","D","lundi","mardi","mercredi","jeudi","vendredi","S","D","lundi","mardi","mercredi","jeudi","vendredi","S","D","lundi","mardi","mercredi","jeudi","vendredi","S","D","lundi","mardi","mercredi","jeudi","vendredi","S","D","lundi","mardi","mercredi","jeudi","vendredi","S","D","lundi","mardi","mercredi","jeudi","vendredi","S","D","lundi","mardi","mercredi","jeudi","vendredi","S","D","lundi","mardi","mercredi","jeudi","vendredi","S","D","lundi","mardi","mercredi","jeudi","vendredi","S","D","lundi","mardi","mercredi","jeudi","vendredi","S","D","lundi","mardi","mercredi","jeudi","vendredi","S","D","lundi","mardi","mercredi","jeudi","vendredi","S","D","lundi","mardi","mercredi","jeudi","vendredi","S","D","lundi","mardi","mercredi","jeudi","vendredi","S","D","lundi","mardi","mercredi","jeudi","vendredi","S","D","lundi","mardi","mercredi","jeudi","vendredi","S","D","lundi","mardi","mercredi","jeudi","vendredi","S","D","lundi","mardi","mercredi","jeudi","vendredi","S","D","lundi","mardi","mercredi","jeudi","vendredi","S","D","lundi","mardi","mercredi","jeudi","vendredi","S","D","lundi","mardi","mercredi","jeudi","vendredi","S","D","lundi","mardi","mercredi","jeudi","vendredi","S","D","lundi","mardi","mercredi","jeudi","vendredi","S","D","lundi","mardi","mercredi","jeudi","vendredi","S","D","lundi","mardi","mercredi","jeudi","vendredi","S","D","lundi","mardi","mercredi","jeudi","vendredi","S","D","lundi","mardi","mercredi","jeudi","vendredi","S","D","lundi","mardi","mercredi","jeudi","vendredi","S","D","lundi","mardi","mercredi","jeudi","vendredi","S","D","lundi","mardi","mercredi","jeudi","vendredi","S","D","lundi","mardi","mercredi","jeudi","vendredi","S","D","lundi","mardi","mercredi","jeudi","vendredi","S","D","lundi","mardi","mercredi","jeudi","vendredi","S","D","lundi","mardi","mercredi","jeudi","vendredi","S","D","lundi","mardi","mercredi","jeudi","vendredi","S","D","lundi","mardi","mercredi","jeudi","vendredi","S","D","lundi","mardi","mercredi","jeudi","vendredi","S","D","lundi","mardi","mercredi","jeudi","vendredi","S","D","lundi","mardi","mercredi","jeudi","vendredi","S","D","lundi","mardi","mercredi","jeudi","vendredi","S","D","lundi","mardi","mercredi","jeudi","vendredi","S","D","lundi","mardi","mercredi","jeudi","vendredi","S","D","lundi","mardi","mercredi","jeudi","vendredi","S","D","lundi","mardi","mercredi","jeudi","vendredi","S","D","lundi","mardi","mercredi","jeudi","vendredi","S","D","lundi","mardi","mercredi","jeudi","vendredi","S","D","lundi","mardi","mercredi","jeudi","vendredi","S","D","lundi","mardi","mercredi","jeudi","vendredi","S","D","lundi","mardi","mercredi","jeudi","vendredi","S","D","lundi","mardi","mercredi"]
["Acompte"]
["Conges"]
["Heure Travaillées",null,null,null,null,null,null,null,null,null,null,null,null,null,null,null,null,null,null,null,null,null,null,null,null,null,null,null,null,null,null,null,null,null,null,null,null,null,null,null,null,null,null,null,null,null,null,null,null,null,null,null,null,null,null,null,null,null,null,null,null,null,null,null,null,null,null,null,null,null,null,null,null,null,null,null,null,null,null,null,null,null,null,null,null,null,null,null,null,null,null,null,null,null,null,null,null,null,null,null,null,null,null,null,null,null,null,null,null,null,null,null,null,null,null,null,null,null,null,null,null,null,null,null,null,null,null,null,null,null,null,null,null,null,null,null,null,null,null,null,null,null,null,null,null,null,null,null,null,null,null,null,null,null,null,null,null,null,null,null,null,null,null,null,null,null,null,null,null,null,null,null,null,null,null,null,null,null,null,null,null,null,null,null,null,null,null,null,null,null,null,null,null,null,null,null,null,null,null,null,null,null,null,null,null,null,null,null,null,null,null,null,null,null,null,null,null,null,null,null,null,null,null,null,null,null,null,null,null,null,null,null,null,null,null,null,null,null,null,null,null,null,null,null,null,null,null,null,null,null,null,null,null,null,null,null,null,null,null,null,null,null,null,null,null,null,null,null,null,null,null,null,null,null,null,null,null,null,null,null,null,null,null,null,null,null,null,null,null,null,null,null,null,null,null,null,null,null,null,null,null,null,null,null,null,null,null,null,null,null,null,null,null,null,null,null,null,null,null,null,null,null,null,null,null,null,null,null,null,null,null,null,null,null,null,null,null,null,null,null,null,null,null,null,null,null,null,null,null,null,null,null,null,null,null,null,null,null,null,null,null,null,null,null,null,null,{"$f":"SUM(C7:AG7)","v":0},{"$f":"SUM(AH7:BI7)","v":0},{"$f":"SUM(BJ7:CN7)","v":0},{"$f":"SUM(CO7:DR7)","v":0},{"$f":"SUM(DS7:EW7)","v":0},{"$f":"SUM(EX7:GA7)","v":0},{"$f":"SUM(GB7:HF7)","v":0},{"$f":"SUM(HG7:IK7)","v":0},{"$f":"SUM(IL7:JO7)","v":0},{"$f":"SUM(JP7:KT7)","v":0},{"$f":"SUM(KU7:LX7)","v":0},{"$f":"SUM(LY7:NB7)","v":0},null,{"$f":"SUM(NC7:NN7)","v":0}]
["Beneficie d'un Panier Repas ?",null,null,null,null,null,null,null,null,null,null,null,null,null,null,null,null,null,null,null,null,null,null,null,null,null,null,null,null,null,null,null,null,null,null,null,null,null,null,null,null,null,null,null,null,null,null,null,null,null,null,null,null,null,null,null,null,null,null,null,null,null,null,null,null,null,null,null,null,null,null,null,null,null,null,null,null,null,null,null,null,null,null,null,null,null,null,null,null,null,null,null,null,null,null,null,null,null,null,null,null,null,null,null,null,null,null,null,null,null,null,null,null,null,null,null,null,null,null,null,null,null,null,null,null,null,null,null,null,null,null,null,null,null,null,null,null,null,null,null,null,null,null,null,null,null,null,null,null,null,null,null,null,null,null,null,null,null,null,null,null,null,null,null,null,null,null,null,null,null,null,null,null,null,null,null,null,null,null,null,null,null,null,null,null,null,null,null,null,null,null,null,null,null,null,null,null,null,null,null,null,null,null,null,null,null,null,null,null,null,null,null,null,null,null,null,null,null,null,null,null,null,null,null,null,null,null,null,null,null,null,null,null,null,null,null,null,null,null,null,null,null,null,null,null,null,null,null,null,null,null,null,null,null,null,null,null,null,null,null,null,null,null,null,null,null,null,null,null,null,null,null,null,null,null,null,null,null,null,null,null,null,null,null,null,null,null,null,null,null,null,null,null,null,null,null,null,null,null,null,null,null,null,null,null,null,null,null,null,null,null,null,null,null,null,null,null,null,null,null,null,null,null,null,null,null,null,null,null,null,null,null,null,null,null,null,null,null,null,null,null,null,null,null,null,null,null,null,null,null,null,null,null,null,null,null,null,null,null,null,null,null,null,null,null,null,{"$f":"SUM(C8:AG8)","v":0},{"$f":"SUM(AH8:BI8)","v":0},{"$f":"SUM(BJ8:CN8)","v":0},{"$f":"SUM(CO8:DR8)","v":0},{"$f":"SUM(DS8:EW8)","v":0},{"$f":"SUM(EX8:GA8)","v":0},{"$f":"SUM(GB8:HF8)","v":0},{"$f":"SUM(HG8:IK8)","v":0},{"$f":"SUM(IL8:JO8)","v":0},{"$f":"SUM(JP8:KT8)","v":0},{"$f":"SUM(KU8:LX8)","v":0},{"$f":"SUM(LY8:NB8)","v":0},null,{"$f":"SUM(NC8:NN8)","v":0}]
["Dedomagement trajet",null,null,null,null,null,null,null,null,null,null,null,null,null,null,null,null,null,null,null,null,null,null,null,null,null,null,null,null,null,null,null,null,null,null,null,null,null,null,null,null,null,null,null,null,null,null,null,null,null,null,null,null,null,null,null,null,null,null,null,null,null,null,null,null,null,null,null,null,null,null,null,null,null,null,null,null,null,null,null,null,null,null,null,null,null,null,null,null,null,null,null,null,null,null,null,null,null,null,null,null,null,null,null,null,null,null,null,null,null,null,null,null,null,null,null,null,null,null,null,null,null,null,null,null,null,null,null,null,null,null,null,null,null,null,null,null,null,null,null,null,null,null,null,null,null,null,null,null,null,null,null,null,null,null,null,null,null,null,null,null,null,null,null,null,null,null,null,null,null,null,null,null,null,null,null,null,null,null,null,null,null,null,null,null,null,null,null,null,null,null,null,null,null,null,null,null,null,null,null,null,null,null,null,null,null,null,null,null,null,null,null,null,null,null,null,null,null,null,null,null,null,null,null,null,null,null,null,null,null,null,null,null,null,null,null,null,null,null,null,null,null,null,null,null,null,null,null,null,null,null,null,null,null,null,null,null,null,null,null,null,null,null,null,null,null,null,null,null,null,null,null,null,null,null,null,null,null,null,null,null,null,null,null,null,null,null,null,null,null,null,null,null,null,null,null,null,null,null,null,null,null,null,null,null,null,null,null,null,null,null,null,null,null,null,null,null,null,null,null,null,null,null,null,null,null,null,null,null,null,null,null,null,null,null,null,null,null,null,null,null,null,null,null,null,null,null,null,null,null,null,null,null,null,null,null,null,null,null,null,null,null,null,null,null,null,{"$f":"SUM(C9:AG9)","v":0},{"$f":"SUM(AH9:BI9)","v":0},{"$f":"SUM(BJ9:CN9)","v":0},{"$f":"SUM(CO9:DR9)","v":0},{"$f":"SUM(DS9:EW9)","v":0},{"$f":"SUM(EX9:GA9)","v":0},{"$f":"SUM(GB9:HF9)","v":0},{"$f":"SUM(HG9:IK9)","v":0},{"$f":"SUM(IL9:JO9)","v":0},{"$f":"SUM(JP9:KT9)","v":0},{"$f":"SUM(KU9:LX9)","v":0},{"$f":"SUM(LY9:NB9)","v":0},null,{"$f":"SUM(NC9:NN9)","v":0}]
["Message d'information"]
["Champ Libre (Complement)"]
["Total Heure Semaine",null,null,null,null,null,{"$f":"SUM(C7:G7)","v":0},null,null,null,null,null,null,{"$f":"SUM(H7:N7)","v":0},null,null,null,null,null,null,{"$f":"SUM(O7:U7)","v":0},null,null,null,null,null,null,{"$f":"SUM(V7:AB7)","v":0},null,null,null,null,null,null,{"$f":"SUM(AC7:AI7)","v":0},null,null,null,null,null,null,{"$f":"SUM(AJ7:AP7)","v":0},null,null,null,null,null,null,{"$f":"SUM(AQ7:AW7)","v":0},null,null,null,null,null,null,{"$f":"SUM(AX7:BD7)","v":0},null,null,null,null,null,null,{"$f":"SUM(BE7:BK7)","v":0},null,null,null,null,null,null,{"$f":"SUM(BL7:BR7)","v":0},null,null,null,null,null,null,{"$f":"SUM(BS7:BY7)","v":0},null,null,null,null,null,null,{"$f":"SUM(BZ7:CF7)","v":0},null,null,null,null,null,null,{"$f":"SUM(CG7:CM7)","v":0},null,null,null,null,null,null,{"$f":"SUM(CN7:CT7)","v":0},null,null,null,null,null,null,{"$f":"SUM(CU7:DA7)","v":0},null,null,null,null,null,null,{"$f":"SUM(DB7:DH7)","v":0},null,null,null,null,null,null,{"$f":"SUM(DI7:DO7)","v":0},null,null,null,null,null,null,{"$f":"SUM(DP7:DV7)","v":0},null,null,null,null,null,null,{"$f":"SUM(DW7:EC7)","v":0},null,null,null,null,null,null,{"$f":"SUM(ED7:EJ7)","v":0},null,null,null,null,null,null,{"$f":"SUM(EK7:EQ7)","v":0},null,null,null,null,null,null,{"$f":"SUM(ER7:EX7)","v":0},null,null,null,null,null,null,{"$f":"SUM(EY7:FE7)","v":0},null,null,null,null,null,null,{"$f":"SUM(FF7:FL7)","v":0},null,null,null,null,null,null,{"$f":"SUM(FM7:FS7)","v":0},null,null,null,null,null,null,{"$f":"SUM(FT7:FZ7)","v":0},null,null,null,null,null,null,{"$f":"SUM(GA7:GG7)","v":0},null,null,null,null,null,null,{"$f":"SUM(GH7:GN7)","v":0},null,null,null,null,null,null,{"$f":"SUM(GO7:GU7)","v":0},null,null,null,null,null,null,{"$f":"SUM(GV7:HB7)","v":0},null,null,null,null,null,null,{"$f":"SUM(HC7:HI7)","v":0},null,null,null,null,null,null,{"$f":"SUM(HJ7:HP7)","v":0},null,null,null,null,null,null,{"$f":"SUM(HQ7:HW7)","v":0},null,null,null,null,null,null,{"$f":"SUM(HX7:ID7)","v":0},null,null,null,null,null,null,{"$f":"SUM(IE7:IK7)","v":0},null,null,null,null,null,null,{"$f":"SUM(IL7:IR7)","v":0},null,null,null,null,null,null,{"$f":"SUM(IS7:IY7)","v":0},null,null,null,null,null,null,{"$f":"SUM(IZ7:JF7)","v":0},null,null,null,null,null,null,{"$f":"SUM(JG7:JM7)","v":0},null,null,null,null,null,null,{"$f":"SUM(JN7:JT7)","v":0},null,null,null,null,null,null,{"$f":"SUM(JU7:KA7)","v":0},null,null,null,null,null,null,{"$f":"SUM(KB7:KH7)","v":0},null,null,null,null,null,null,{"$f":"SUM(KI7:KO7)","v":0},null,null,null,null,null,null,{"$f":"SUM(KP7:KV7)","v":0},null,null,null,null,null,null,{"$f":"SUM(KW7:LC7)","v":0},null,null,null,null,null,null,{"$f":"SUM(LD7:LJ7)","v":0},null,null,null,null,null,null,{"$f":"SUM(LK7:LQ7)","v":0},null,null,null,null,null,null,{"$f":"SUM(LR7:LX7)","v":0},null,null,null,null,null,null,{"$f":"SUM(LY7:ME7)","v":0},null,null,null,null,null,null,{"$f":"SUM(MF7:ML7)","v":0},null,null,null,null,null,null,{"$f":"SUM(MM7:MS7)","v":0},null,null,null,null,null,null,{"$f":"SUM(MT7:MZ7)","v":0}]